fUSD/lending_fUSD_20240520
["ID","MTS","AMOUNT","RATE_DAILY","PERIOD"]
[327563837,1716233456623,-150.0,0.0003,7]
[327563838,1716233456634,-150.0,0.0003,7]
[327563839,1716233456645,-150.0,0.0003,7]
[327563840,1716233456656,-150.0,0.0003,7]
[327563841,1716233456669,-150.0,0.0003,7]
[327563842,1716233456680,-150.0,0.0003,7]
[327563843,1716233456692,-150.42966381,0.0003,7]
[327563844,1716233456704,-150.21872242,0.0003,7]
[327563845,1716233456715,-295.95105116,0.0003,7]
[327563846,1716233456738,-150.0,0.0003,7]
[327563847,1716233456749,-150.0,0.0003,7]
[327563848,1716233456760,-150.0,0.0003,7]
[327563849,1716233456772,-182.763188,0.0003,7]
[327563850,1716233456785,-151.0,0.0003,7]
[327563851,1716233456800,-300.0,0.0003,2]
[327563852,1716233456811,-420.677453,0.0003,7]
[327563853,1716233456822,-420.677453,0.0003,7]
[327563854,1716233456836,-636.68,0.0003,2]
[327563855,1716233456847,-530.28,0.0003,2]
[327563856,1716233456857,-230.984219,0.0003,7]
[327563857,1716233456868,-230.984219,0.0003,7]
[327563858,1716233456879,-151.0,0.0003,7]
[327563859,1716233456891,-151.0,0.0003,7]
[327563860,1716233456903,-151.0,0.0003,7]
[327563861,1716233456915,-151.0,0.0003,7]
[327563862,1716233456926,-1150.0,0.0003,11]
[327563863,1716233456937,-1500.0,0.0003,2]
[327563864,1716233457185,-151.0,0.0003,7]
[327563865,1716233457212,-1816.200876,0.0003,7]
[327563866,1716233457230,-1816.200876,0.0003,7]
[327563867,1716233457241,-151.0,0.0003,7]
[327563868,1716233457253,-151.0,0.0003,7]
[327563869,1716233457264,-185.415519,0.0003,7]
[327563870,1716233457276,-151.0,0.0003,7]
[327563871,1716233457287,-151.0,0.0003,7]
[327563872,1716233457298,-289.763576,0.0003,7]
[327563873,1716233457309,-294.0,0.0003,7]
[327563874,1716233457320,-289.763576,0.0003,7]
[327563875,1716233457332,-150.0,0.0003,6]
[327563876,1716233457343,-151.0,0.0003,7]
[327563877,1716233457354,-151.0,0.0003,7]
[327563878,1716233457365,-151.0,0.0003,7]
[327563879,1716233457375,-167.901035,0.0003,7]
[327563880,1716233457390,-167.901035,0.0003,7]
[327563881,1716233457402,-252.297509,0.0003,7]
[327563882,1716233457412,-624.8194567,0.00030068,2]
[327563883,1716233457423,-6878.2946861,0.00030068,2]
[327563884,1716233457434,-2431.5887552,0.00030089,2]
[327563885,1716233457445,-25621.29293781,0.00030089,2]
[327563886,1716233457460,-24291.17869259,0.00030089,2]
[327563887,1716233457477,-1491.6283618,0.00030089,2]
[327563888,1716233457488,-158.39633661,0.0003011,30]
[327563889,1716233457501,-22461.38,0.00030137,2]
[327563890,1716233457512,-157.052018,0.00030148,26]
[327563891,1716233457522,-6250.43844971,0.00030191,2]
[327563892,1716233457533,-600.0,0.00030274,10]
[327563893,1716233457544,-2000.0,0.000303,2]
[327563894,1716233457554,-200.0,0.000303,2]
[327563895,1716233457566,-200.0,0.000303,2]
[327563896,1716233457577,-13374.0,0.00030307,2]
[327563897,1716233457588,-158.39633661,0.00030329,30]
[327563898,1716233457601,-157.052018,0.00030348,28]
[327563899,1716233457614,-3000.0,0.000304,2]
[327563900,1716233457625,-157.052018,0.00030448,26]
[327563901,1716233457637,-345.41025846,0.00030463,2]
[327563902,1716233457649,-1976.46335724,0.00030463,2]
[327563903,1716233457660,-1391.36017805,0.000305,30]
[327563904,1716233457672,-338.0,0.000305,19]
[327563905,1716233457684,-2000.0,0.00030603,2]
[327563906,1716233457696,-200.0,0.00030603,2]
[327563907,1716233457708,-200.0,0.00030603,2]
[327563908,1716233457725,-157.052018,0.00030748,26]
[327563909,1716233457736,-151.0,0.00030778,2]
[327563910,1716233457748,-1655.13,0.000308,2]
[327563911,1716233457758,-636.68,0.000308,2]
[327563912,1716233457769,-530.28,0.000308,2]
[327563913,1716233457782,-900.0,0.00030822,10]
[327563914,1716233457797,-164.41248888,0.0003085,2]
[327563915,1716233457808,-1863.099603,0.000309,2]
[327563916,1716233457819,-1001.88,0.000309,2]
[327563917,1716233457833,-339.42618412,0.000309,6]
[327563918,1716233457844,-12202.59781786,0.000309,2]
[327563919,1716233457855,-263.1949673,0.000309,2]
[327563920,1716233457868,-1355.04845018,0.000309,2]
[327563921,1716233457880,-2000.0,0.00030909,2]
[327563922,1716233457892,-200.0,0.00030909,2]
[327563923,1716233457902,-200.0,0.00030909,2]
[327563924,1716233457913,-151.0,0.00030976,2]
[327563925,1716233457924,-250.49088,0.00030976,2]
[327563926,1716233457935,-50000.0,0.00031,11]
[327563927,1716233457945,-150.0,0.00031,10]
[327563928,1716233457956,-2000.0,0.00031,4]
[327563929,1716233457968,-338.0,0.00031,19]
[327563930,1716233457985,-2000.0,0.00031,2]
[327563931,1716233457995,-157.052018,0.00031148,28]
[327563932,1716233458006,-12103.38628515,0.0003121,2]
[327563933,1716233458016,-151.0,0.0003121,7]
[327563934,1716233458026,-151.0,0.0003121,7]
[327563935,1716233458036,-151.0,0.0003121,7]
[327563936,1716233458047,-167.901035,0.0003121,7]
[327563937,1716233458059,-167.901035,0.0003121,7]
[327563938,1716233458069,-2000.0,0.00031218,2]
[327563939,1716233458079,-200.0,0.00031218,2]
[327563940,1716233458090,-200.0,0.00031218,2]
[327563941,1716233458100,-492.0,0.00031286,3]
[327563942,1716233458112,-492.0,0.00031286,3]
[327563943,1716233458122,-163.35,0.00031289,2]
[327563944,1716233458132,-840.88,0.00031289,2]
[327563945,1716233458142,-1131.61,0.00031289,2]
[327563946,1716233458153,-151.0,0.00031306,7]
[327563947,1716233458164,-1816.200876,0.00031306,7]
[327563948,1716233458174,-1816.200876,0.00031306,7]
[327563949,1716233458185,-151.0,0.00031306,7]
[327563950,1716233458195,-151.0,0.00031306,7]
[327563951,1716233458204,-151.0,0.00031306,7]
[327563952,1716233458214,-289.763576,0.00031306,7]
[327563953,1716233458229,-289.763576,0.00031306,7]
[327563954,1716233458239,-157.052018,0.00031348,30]
[327563955,1716233458248,-602.00935229,0.00031354,2]
[327563956,1716233458258,-600.0,0.0003137,10]
[327563957,1716233458267,-157.052018,0.00031448,28]
[327563958,1716233458276,-302.0,0.00031497,4]
[327563959,1716233458286,-338.0,0.000315,20]
[327563960,1716233458296,-1781.24,0.00031514,2]
[327563961,1716233458305,-869.61,0.00031514,2]
[327563962,1716233458316,-840.03,0.00031514,2]
[327563963,1716233458325,-636.68,0.000316,2]
[327563964,1716233458335,-530.28,0.000316,2]
[327563965,1716233458344,-157.052018,0.00031748,28]
[327563966,1716233458354,-151.0,0.00031802,7]
[327563967,1716233458364,-162.282494,0.00031802,7]
[327563968,1716233458374,-280.446421,0.00031802,7]
[327563969,1716233458383,-280.446421,0.00031802,7]
[327563970,1716233458393,-208.883186,0.00031802,7]
[327563971,1716233458403,-208.883186,0.00031802,7]
[327563972,1716233458412,-183.885468,0.00031802,7]
[327563973,1716233458423,-183.885468,0.00031802,7]
[327563974,1716233458432,-313.437951,0.00031802,7]
[327563975,1716233458441,-313.437951,0.00031802,7]
[327563976,1716233458450,-151.0,0.00031802,7]
[327563977,1716233458460,-420.677453,0.00031802,7]
[327563978,1716233458474,-420.677453,0.00031802,7]
[327563979,1716233458484,-230.984219,0.00031802,7]
[327563980,1716233458493,-230.984219,0.00031802,7]
[327563981,1716233458502,-151.0,0.00031802,7]
[327563982,1716233458512,-151.0,0.00031802,7]
[327563983,1716233458521,-151.0,0.00031802,7]
[327563984,1716233458530,-151.0,0.00031802,7]
[327563985,1716233458539,-151.0,0.00031802,7]
[327563986,1716233458548,-179.2,0.00031812,2]
[327563987,1716233458557,-900.0,0.00031918,10]
[327563988,1716233458566,-6250.43844971,0.00031955,3]
[327563989,1716233458575,-1016.06,0.00031999,2]
[327563990,1716233458584,-50000.0,0.00032,12]
[327563991,1716233458594,-150.0,0.00032,10]
[327563992,1716233458603,-500.0,0.00032,2]
[327563993,1716233458612,-334.47578747,0.00032,4]
[327563994,1716233458622,-155.0,0.00032,4]
[327563995,1716233458632,-2000.0,0.00032,7]
[327563996,1716233458642,-6400.0,0.00032,4]
[327563997,1716233458652,-338.0,0.00032,20]
[327563998,1716233458662,-151.914558,0.00032,7]
[327563999,1716233458671,-181.81815,0.00032,7]
[327564000,1716233458682,-181.81815,0.00032,7]
[327564001,1716233458691,-151.0,0.00032,7]
[327564002,1716233458701,-151.0,0.00032,7]
[327564003,1716233458711,-151.0,0.00032,7]
[327564004,1716233458725,-207.868623,0.00032,7]
[327564005,1716233458735,-156.924621,0.00032,7]
[327564006,1716233458744,-207.868623,0.00032,7]
[327564007,1716233458754,-151.0,0.00032,7]
[327564008,1716233458763,-151.0,0.00032,7]
[327564009,1716233458772,-151.0,0.00032,7]
[327564010,1716233458784,-151.0,0.00032,7]
[327564011,1716233458796,-151.770275,0.00032,7]
[327564012,1716233458806,-151.770275,0.00032,7]
[327564013,1716233458816,-154.83423,0.00032,7]
[327564014,1716233458825,-151.0,0.00032,7]
[327564015,1716233458837,-273.805732,0.00032,7]
[327564016,1716233458847,-151.0,0.00032,7]
[327564017,1716233458856,-151.0,0.00032,7]
[327564018,1716233458867,-151.0,0.00032,7]
[327564019,1716233458876,-166.611723,0.00032,7]
[327564020,1716233458886,-166.611723,0.00032,7]
[327564021,1716233458896,-151.0,0.00032,7]
[327564022,1716233458907,-150.0,0.00032009,2]
[327564023,1716233458916,-604.0,0.00032026,7]
[327564024,1716233458926,-157.052018,0.00032148,30]
[327564025,1716233458936,-522.70212,0.000322,2]
[327564026,1716233458946,-500.0,0.00032232,2]
[327564027,1716233458956,-150.0,0.00032239,120]
[327564028,1716233458966,-1000.0,0.00032248,2]
[327564029,1716233458982,-300.72,0.00032296,2]
[327564030,1716233458991,-150.0,0.00032296,2]
[327564031,1716233459000,-150.0,0.00032296,2]
[327564032,1716233459010,-157.052018,0.00032348,32]
[327564033,1716233459019,-210.93221471,0.0003235,4]
[327564034,1716233459028,-1001.88,0.00032375,2]
[327564035,1716233459037,-636.68,0.000324,2]
[327564036,1716233459047,-530.28,0.000324,2]
[327564037,1716233459056,-150.0,0.00032413,120]
[327564038,1716233459065,-157.052018,0.00032448,30]
[327564039,1716233459074,-747.41001745,0.00032466,10]
[327564040,1716233459083,-1000.0,0.000325,2]
[327564041,1716233459093,-338.0,0.000325,21]
[327564042,1716233459102,-166.99392,0.00032564,4]
[327564043,1716233459112,-28040.00462954,0.00032583,2]
[327564044,1716233459123,-1655.13,0.000326,2]
[327564045,1716233459132,-605.0,0.00032627,3]
[327564046,1716233459142,-605.0,0.00032627,3]
[327564047,1716233459151,-157.052018,0.00032648,32]
[327564048,1716233459161,-157.052019,0.00032748,30]
[327564049,1716233459171,-3539.81729354,0.000328,2]
[327564050,1716233459180,-1453.06169287,0.0003281,2]
[327564051,1716233459190,-1208.0,0.00032837,30]
[327564052,1716233459199,-150.0,0.00032844,2]
[327564053,1716233459209,-28482.54809847,0.00032873,2]
[327564054,1716233459218,-500.0,0.00032876,30]
[327564055,1716233459233,-500.0,0.00032876,30]
[327564056,1716233459242,-1800.74,0.00032876,2]
[327564057,1716233459251,-1800.74,0.00032876,2]
[327564058,1716233459260,-1800.74,0.00032876,2]
[327564059,1716233459268,-1800.74,0.00032876,2]
[327564060,1716233459277,-1800.74,0.00032876,2]
[327564061,1716233459286,-1800.74,0.00032876,2]
[327564062,1716233459296,-1800.74,0.00032876,2]
[327564063,1716233459305,-1800.74,0.00032876,2]
[327564064,1716233459317,-1800.74,0.00032876,2]
[327564065,1716233459327,-1800.74,0.00032876,2]
[327564066,1716233459336,-1800.74,0.00032876,2]
[327564067,1716233459346,-1800.74,0.00032876,2]
[327564068,1716233459355,-1800.74,0.00032876,2]
[327564069,1716233459365,-1800.74,0.00032876,2]
[327564070,1716233459376,-1800.74,0.00032876,2]
[327564071,1716233459389,-1800.74,0.00032876,2]
[327564072,1716233459407,-1800.74,0.00032876,2]
[327564073,1716233459420,-1800.74,0.00032876,2]
[327564074,1716233459433,-1800.74,0.00032876,2]
[327564075,1716233459445,-1800.74,0.00032876,2]
[327564076,1716233459457,-1800.74,0.00032876,2]
[327564077,1716233459469,-1800.74,0.00032876,2]
[327564078,1716233459487,-1800.74,0.00032876,2]
[327564079,1716233459498,-1800.94243265,0.00032876,2]
[327564080,1716233459509,-28895.70328844,0.00032877,2]
[327564081,1716233459526,-2667.01525617,0.00032877,2]
[327564082,1716233459540,-1482.98466733,0.00032877,2]
[327564083,1716233459554,-3264.2630295,0.00032877,2]
[327564084,1716233459567,-1649.32414159,0.00032877,2]
[327564085,1716233459581,-4423.89717805,0.00032877,2]
[327564086,1716233459596,-8623.31057665,0.00032877,2]
[327564087,1716233459610,-5288.19186227,0.00032877,2]
[327564088,1716233459622,-211.32754585,0.00032877,2]
[327564089,1716233459637,-841.5176667,0.00032877,2]
[327564090,1716233459651,-769.5462332,0.00032877,2]
[327564091,1716233459668,-35983.98855425,0.00032877,2]
[327564092,1716233459680,-151.0,0.00032877,7]
[327564093,1716233459691,-280.446421,0.00032877,7]
[327564094,1716233459702,-280.446421,0.00032877,7]
[327564095,1716233459713,-208.883186,0.00032877,7]
[327564096,1716233459730,-208.883186,0.00032877,7]
[327564097,1716233459742,-183.885468,0.00032877,7]
[327564098,1716233459753,-183.885468,0.00032877,7]
[327564099,1716233459765,-313.437951,0.00032877,7]
[327564100,1716233459776,-313.437951,0.00032877,7]
[327564101,1716233459798,-151.0,0.00032877,7]
[327564102,1716233459816,-420.677453,0.00032877,7]
[327564103,1716233459828,-420.677453,0.00032877,7]
[327564104,1716233459841,-230.984219,0.00032877,7]
[327564105,1716233459852,-230.984219,0.00032877,7]
[327564106,1716233459863,-151.0,0.00032877,7]
[327564107,1716233459875,-185.594077,0.00032877,7]
[327564108,1716233459887,-151.0,0.00032877,7]
[327564109,1716233459901,-151.0,0.00032877,7]
[327564110,1716233459912,-1816.200876,0.00032877,7]
[327564111,1716233459924,-1816.200876,0.00032877,7]
[327564112,1716233459935,-151.0,0.00032877,7]
[327564113,1716233459946,-151.0,0.00032877,7]
[327564114,1716233459957,-151.0,0.00032877,7]
[327564115,1716233459968,-289.763576,0.00032877,7]
[327564116,1716233459987,-289.763576,0.00032877,7]
[327564117,1716233459998,-151.0,0.00032877,7]
[327564118,1716233460010,-151.0,0.00032877,7]
[327564119,1716233460020,-151.0,0.00032877,7]
[327564120,1716233460032,-167.901035,0.00032877,7]
[327564121,1716233460047,-167.901035,0.00032877,7]
[327564122,1716233460058,-150.7,0.0003288,15]
[327564123,1716233460070,-166.5,0.00032888,2]
[327564124,1716233460082,-166.5,0.00032888,2]
[327564125,1716233460093,-166.5,0.00032888,2]
[327564126,1716233460104,-166.5,0.00032888,2]
[327564127,1716233460116,-166.5,0.00032888,2]
[327564128,1716233460127,-166.5,0.00032888,2]
[327564129,1716233460138,-166.5,0.00032888,2]
[327564130,1716233460151,-600.0,0.00032889,20]
[327564131,1716233460162,-161.76,0.0003289,15]
[327564132,1716233460173,-211.46,0.0003289,15]
[327564133,1716233460184,-150.5,0.0003289,15]
[327564134,1716233460195,-150.5,0.0003289,15]
[327564135,1716233460206,-150.5,0.0003289,15]
[327564136,1716233460392,-1602.93844467,0.000329,30]
[327564137,1716233460403,-429.54129055,0.000329,30]
[327564138,1716233460414,-167.0,0.000329,2]
[327564139,1716233460425,-840.0,0.000329,2]
[327564140,1716233460436,-2000.0,0.000329,2]
[327564141,1716233460447,-1051.72963696,0.000329,2]
[327564142,1716233460458,-263.0,0.000329,2]
[327564143,1716233460469,-8664.27,0.00032904,2]
[327564144,1716233460487,-50000.0,0.00033,13]
[327564145,1716233460497,-15071.6972135,0.00033,2]
[327564146,1716233460508,-9127.60562674,0.00033,2]
[327564147,1716233460521,-14002.63857563,0.00033,2]
[327564148,1716233460531,-975.48133753,0.00033,2]
[327564149,1716233460542,-150.0,0.00033,10]
[327564150,1716233460552,-191.3604882,0.00033,120]
[327564151,1716233460563,-158.09169065,0.00033,120]
[327564152,1716233460574,-620.25450476,0.00033,120]
[327564153,1716233460585,-2000.0,0.00033,9]
[327564154,1716233460596,-338.0,0.00033,22]
[327564155,1716233460607,-151.0,0.00033,7]
[327564156,1716233460617,-151.0,0.00033,7]
[327564157,1716233460629,-2050.0,0.00033,2]
[327564158,1716233460639,-181.81815,0.00033,7]
[327564159,1716233460650,-181.81815,0.00033,7]
[327564160,1716233460661,-151.0,0.00033,7]
[327564161,1716233460672,-151.0,0.00033,7]
[327564162,1716233460684,-151.0,0.00033,7]
[327564163,1716233460694,-207.868623,0.00033,7]
[327564164,1716233460704,-207.868623,0.00033,7]
[327564165,1716233460715,-171.758072,0.00033,7]
[327564166,1716233460731,-151.0,0.00033,7]
[327564167,1716233460742,-151.0,0.00033,7]
[327564168,1716233460753,-151.770275,0.00033,7]
[327564169,1716233460764,-151.770275,0.00033,7]
[327564170,1716233460775,-151.0,0.00033,7]
[327564171,1716233460788,-151.0,0.00033,7]
[327564172,1716233460801,-151.0,0.00033,7]
[327564173,1716233460811,-151.0,0.00033,7]
[327564174,1716233460822,-166.611723,0.00033,7]
[327564175,1716233460836,-166.611723,0.00033,7]
[327564176,1716233460848,-151.0,0.00033,7]
[327564177,1716233460860,-1661.96751,0.00033,2]
[327564178,1716233460872,-900.0,0.00033014,10]
[327564179,1716233460885,-314.052014,0.00033148,32]
[327564180,1716233460897,-618.89,0.00033151,120]
[327564181,1716233460908,-3000.0,0.000332,2]
[327564182,1716233460918,-301.0,0.0003327,15]
[327564183,1716233460929,-301.0,0.0003328,15]
[327564184,1716233460939,-301.0,0.0003329,15]
[327564185,1716233460949,-466.0,0.0003329,2]
[327564186,1716233460961,-151.0,0.00033332,7]
[327564187,1716233460976,-420.677453,0.00033332,7]
[327564188,1716233460986,-420.677453,0.00033332,7]
[327564189,1716233460996,-2431.5887552,0.00033333,2]
[327564190,1716233461005,-2431.5887552,0.00033333,2]
[327564191,1716233461016,-1353.90236394,0.00033333,2]
[327564192,1716233461029,-5999.77057348,0.00033333,2]
[327564193,1716233461042,-14760.74081103,0.00033333,2]
[327564194,1716233461055,-17875.82006085,0.00033333,2]
[327564195,1716233461067,-30067.9959882,0.00033333,2]
[327564196,1716233461078,-1491.6283618,0.00033333,2]
[327564197,1716233461089,-1491.6283618,0.00033333,2]
[327564198,1716233461100,-624.8194567,0.00033333,2]
[327564199,1716233461110,-624.8194567,0.00033333,2]
[327564200,1716233461121,-624.8194567,0.00033333,2]
[327564201,1716233461131,-6878.2946861,0.00033333,2]
[327564202,1716233461141,-6878.2946861,0.00033333,2]
[327564203,1716233461152,-6878.2946861,0.00033333,2]
[327564204,1716233461162,-151.0,0.00033333,7]
[327564205,1716233461173,-280.446421,0.00033333,7]
[327564206,1716233461184,-280.446421,0.00033333,7]
[327564207,1716233461195,-208.883186,0.00033333,7]
[327564208,1716233461205,-208.883186,0.00033333,7]
[327564209,1716233461217,-183.885468,0.00033333,7]
[327564210,1716233461235,-183.885468,0.00033333,7]
[327564211,1716233461246,-313.437951,0.00033333,7]
[327564212,1716233461258,-313.437951,0.00033333,7]
[327564213,1716233461271,-314.052016,0.00033348,34]
[327564214,1716233461283,-151.0,0.00033349,7]
[327564215,1716233461295,-151.0,0.00033349,7]
[327564216,1716233461307,-151.0,0.00033349,7]
[327564217,1716233461317,-151.0,0.00033349,7]
[327564218,1716233461328,-166.611723,0.00033349,7]
[327564219,1716233461339,-166.611723,0.00033349,7]
[327564220,1716233461349,-233.020637,0.00033349,7]
[327564221,1716233461360,-151.0,0.0003335,7]
[327564222,1716233461371,-151.0,0.0003335,7]
[327564223,1716233461382,-287.042657,0.0003335,7]
[327564224,1716233461403,-181.81815,0.0003335,7]
[327564225,1716233461413,-181.81815,0.0003335,7]
[327564226,1716233461424,-181.81815,0.0003335,7]
[327564227,1716233461435,-181.81815,0.0003335,7]
[327564228,1716233461444,-181.81815,0.0003335,7]
[327564229,1716233461455,-181.81815,0.0003335,7]
[327564230,1716233461465,-181.81815,0.0003335,7]
[327564231,1716233461482,-181.81815,0.0003335,7]
[327564232,1716233461492,-181.81815,0.0003335,7]
[327564233,1716233461501,-181.81815,0.0003335,7]
[327564234,1716233461511,-181.81815,0.0003335,7]
[327564235,1716233461520,-181.81815,0.0003335,7]
[327564236,1716233461529,-181.81815,0.0003335,7]
[327564237,1716233461539,-181.81815,0.0003335,7]
[327564238,1716233461548,-297.182592,0.0003335,7]
[327564239,1716233461559,-151.0,0.0003335,7]
[327564240,1716233461568,-296.994175,0.0003335,7]
[327564241,1716233461577,-151.0,0.0003335,7]
[327564242,1716233461586,-226.330638,0.0003335,7]
[327564243,1716233461598,-207.868623,0.0003335,7]
[327564244,1716233461607,-207.868623,0.0003335,7]
[327564245,1716233461616,-207.868623,0.0003335,7]
[327564246,1716233461626,-207.868623,0.0003335,7]
[327564247,1716233461635,-207.868623,0.0003335,7]
[327564248,1716233461645,-207.868623,0.0003335,7]
[327564249,1716233461654,-207.868623,0.0003335,7]
[327564250,1716233461663,-207.868623,0.0003335,7]
[327564251,1716233461673,-207.868623,0.0003335,7]
[327564252,1716233461683,-207.868623,0.0003335,7]
[327564253,1716233461693,-207.868623,0.0003335,7]
[327564254,1716233461702,-207.868623,0.0003335,7]
[327564255,1716233461712,-207.868623,0.0003335,7]
[327564256,1716233461727,-207.868623,0.0003335,7]
[327564257,1716233461737,-151.0,0.0003335,7]
[327564258,1716233461747,-151.0,0.0003335,7]
[327564259,1716233461757,-151.0,0.0003335,7]
[327564260,1716233461766,-151.0,0.0003335,7]
[327564261,1716233461776,-151.0,0.0003335,7]
[327564262,1716233461792,-151.0,0.0003335,7]
[327564263,1716233461802,-151.0,0.0003335,7]
[327564264,1716233461811,-151.0,0.0003335,7]
[327564265,1716233461820,-151.0,0.0003335,7]
[327564266,1716233461832,-270.48,0.0003335,7]
[327564267,1716233461843,-151.770275,0.0003335,7]
[327564268,1716233461853,-151.770275,0.0003335,7]
[327564269,1716233461862,-151.770275,0.0003335,7]
[327564270,1716233461872,-151.770275,0.0003335,7]
[327564271,1716233461882,-151.770275,0.0003335,7]
[327564272,1716233461891,-151.770275,0.0003335,7]
[327564273,1716233461901,-151.770275,0.0003335,7]
[327564274,1716233461911,-151.770275,0.0003335,7]
[327564275,1716233461920,-151.770275,0.0003335,7]
[327564276,1716233461929,-151.770275,0.0003335,7]
[327564277,1716233461939,-151.770275,0.0003335,7]
[327564278,1716233461948,-151.770275,0.0003335,7]
[327564279,1716233461958,-151.770275,0.0003335,7]
[327564280,1716233461968,-151.770275,0.0003335,7]
[327564281,1716233461984,-171.688414,0.0003335,7]
[327564282,1716233461994,-151.0,0.0003335,7]
[327564283,1716233462003,-151.0,0.0003335,7]
[327564284,1716233462012,-151.0,0.0003335,7]
[327564285,1716233462021,-151.0,0.0003335,7]
[327564286,1716233462030,-151.0,0.0003335,7]
[327564287,1716233462040,-151.0,0.0003335,7]
[327564288,1716233462050,-151.0,0.0003335,7]
[327564290,1716233462060,-151.0,0.0003335,7]
[327564291,1716233462070,-276.932458,0.0003335,7]
[327564292,1716233462081,-151.0,0.0003335,7]
[327564293,1716233462092,-151.0,0.0003335,7]
[327564294,1716233462102,-151.0,0.0003335,7]
[327564295,1716233462112,-151.0,0.0003335,7]
[327564296,1716233462122,-151.0,0.0003335,7]
[327564297,1716233462131,-151.0,0.0003335,7]
[327564298,1716233462141,-195.449771,0.0003335,7]
[327564299,1716233462151,-166.611723,0.0003335,7]
[327564300,1716233462160,-166.611723,0.0003335,7]
[327564301,1716233462170,-166.611723,0.0003335,7]
[327564302,1716233462180,-166.611723,0.0003335,7]
[327564303,1716233462189,-166.611723,0.0003335,7]
[327564304,1716233462198,-166.611723,0.0003335,7]
[327564305,1716233462208,-166.611723,0.0003335,7]
[327564306,1716233462217,-166.611723,0.0003335,7]
[327564307,1716233462239,-166.611723,0.0003335,7]
[327564308,1716233462249,-166.611723,0.0003335,7]
[327564309,1716233462258,-166.611723,0.0003335,7]
[327564310,1716233462268,-166.611723,0.0003335,7]
[327564311,1716233462278,-166.611723,0.0003335,7]
[327564312,1716233462287,-166.611725,0.0003335,7]
[327564313,1716233462297,-151.0,0.0003335,7]
[327564314,1716233462307,-151.0,0.0003335,7]
[327564315,1716233462316,-151.0,0.0003335,7]
[327564316,1716233462332,-151.0,0.0003335,7]
[327564317,1716233462342,-151.0,0.0003335,7]
[327564318,1716233462352,-280.446421,0.0003335,7]
[327564319,1716233462365,-280.446421,0.0003335,7]
[327564320,1716233462376,-280.446421,0.0003335,7]
[327564321,1716233462387,-280.446421,0.0003335,7]
[327564322,1716233462398,-280.446421,0.0003335,7]
[327564323,1716233462408,-280.446421,0.0003335,7]
[327564324,1716233462418,-280.446421,0.0003335,7]
[327564325,1716233462427,-280.446421,0.0003335,7]
[327564326,1716233462438,-280.446421,0.0003335,7]
[327564327,1716233462449,-280.446421,0.0003335,7]
[327564328,1716233462459,-280.446421,0.0003335,7]
[327564329,1716233462469,-280.446421,0.0003335,7]
[327564330,1716233462486,-280.446421,0.0003335,7]
[327564331,1716233462496,-280.446413,0.0003335,7]
[327564332,1716233462505,-208.883186,0.0003335,7]
[327564333,1716233462515,-208.883186,0.0003335,7]
[327564334,1716233462524,-208.883186,0.0003335,7]
[327564335,1716233462534,-208.883186,0.0003335,7]
[327564336,1716233462544,-208.883186,0.0003335,7]
[327564337,1716233462555,-208.883186,0.0003335,7]